[Event "Couzeix rapide 9 rondes cadences multiples"]
[Site "Couzeix Chess Club, France"]
[Date "2019.03.10"]
[Round "1.1"]
[White "Monnet, Sebastien"]
[Black "Jackson, Thomas"]
[Result "0-1"]
[TimeControl "5'+10''pm,  7'+10''pm, 10'+10''pm,"]
[WhiteElo "1604"]
[BlackElo "2106"]

1. e4 {[%emt 00:03:49]} c5 {[%emt 00:00:01]} 2. Nc3 {[%emt 00:00:02]} e6 {[%emt
00:00:01]} 3. f4 d5 {[%emt 00:00:01]} 4. exd5 exd5 {[%emt 00:00:02]} 5. Nf3
{[%emt 00:00:03]} Nc6 6. d3 {[%emt 00:00:02]} Nf6 {[%emt 00:00:01]} 7. Be2
{[%emt 00:00:03]} Be7 {[%emt 00:00:01]} 8. O-O {[%emt 00:00:02]} O-O {[%emt
00:00:02]} 9. d4 {[%emt 00:00:01]} cxd4 10. Nxd4 {[%emt 00:00:03]} Bc5 {[%emt
00:00:02]} 11. Be3 {[%emt 00:00:02]} Re8 {[%emt 00:00:01]} 12. Bf2 {[%emt
00:00:01]} Nxd4 {[%emt 00:00:02]} 13. Bxd4 {[%emt 00:00:02]} Qb6 {[%emt
00:00:02]} 14. Bxc5 {[%emt 00:00:01]} Qxc5+ {[%emt 00:00:01]} 15. Kh1 {[%emt
00:00:03]} Bd7 {[%emt 00:00:02]} 16. Bf3 {[%emt 00:00:01]} Bc6 {[%emt
00:00:01]} 17. Qd2 d4 {[%emt 00:00:01]} 18. Bxc6 {[%emt 00:00:02]} dxc3 {[%emt
00:00:02]} 19. Qxc3 {[%emt 00:00:03]} Qxc3 {[%emt 00:00:02]} 20. bxc3 {[%emt
00:00:01]} bxc6 {[%emt 00:00:03]} 21. Rfe1 {[%emt 00:00:02]} Rxe1+ {[%emt
00:00:01]} 22. Rxe1 {[%emt 00:00:02]} Re8 0-1

[Event "Couzeix rapide 9 rondes cadences multiples"]
[Site "Couzeix Chess Club, France"]
[Date "2019.03.10"]
[Round "1.2"]
[White "Dubreuil, Remy"]
[Black "Geronimus, Thierry"]
[Result "1-0"]
[TimeControl "5'+10''pm,  7'+10''pm, 10'+10''pm,"]
[WhiteElo "1714"]
[BlackElo "1317"]

1. b3 {[%clk 00:05:17]} e5 {[%clk 00:05:18]} {[%emt 00:00:03]} 2. Bb2 {[%clk
00:05:25]} {[%emt 00:00:03]} d6 {[%clk 00:05:22]} {[%emt 00:00:04]} 3. e3
{[%clk 00:05:34]} {[%emt 00:00:02]} g6 {[%clk 00:05:24]} {[%emt 00:00:08]} 4.
Nf3 {[%clk 00:05:40]} {[%emt 00:00:03]} Bg7 {[%clk 00:05:31]} {[%emt 00:00:04]}
5. e4 {[%clk 00:05:46]} {[%emt 00:00:06]} Nf6 {[%clk 00:05:39]} 6. Nc3 {[%clk
00:05:51]} {[%emt 00:00:04]} Nbd7 {[%clk 00:05:41]} {[%emt 00:00:09]} 7. Be2
{[%clk 00:05:58]} {[%emt 00:00:02]} b6 {[%clk 00:05:49]} {[%emt 00:00:04]} 8.
O-O {[%clk 00:06:05]} {[%emt 00:00:01]} O-O {[%clk 00:05:56]} {[%emt 00:00:03]}
9. a4 {[%clk 00:06:05]} {[%emt 00:00:10]} Bb7 {[%clk 00:06:01]} {[%emt
00:00:06]} 10. d3 {[%clk 00:06:12]} {[%emt 00:00:02]} a6 {[%clk 00:06:02]}
{[%emt 00:00:12]} 11. Rb1 {[%clk 00:06:20]} Rb8 {[%clk 00:06:08]} {[%emt
00:00:04]} 12. Bc1 {[%clk 00:06:20]} {[%emt 00:00:09]} Re8 {[%clk 00:06:05]}
{[%emt 00:00:14]} 13. Bg5 {[%clk 00:06:27]} {[%emt 00:00:03]} Qc8 {[%clk
00:05:59]} {[%emt 00:00:17]} 14. Qc1 {[%clk 00:06:33]} {[%emt 00:00:03]} Nh5
{[%clk 00:05:29]} {[%emt 00:00:40]} 15. h3 {[%clk 00:06:31]} {[%emt 00:00:11]}
Nf4 {[%clk 00:05:37]} {[%emt 00:00:03]} 16. Bxf4 {[%clk 00:06:19]} {[%emt
00:00:23]} exf4 {[%clk 00:05:45]} 17. d4 {[%clk 00:06:06]} {[%emt 00:00:23]}
Bxe4 {[%clk 00:05:02]} {[%emt 00:00:53]} 18. Nxe4 {[%clk 00:06:13]} {[%emt
00:00:04]} Rxe4 {[%clk 00:05:10]} {[%emt 00:00:01]} 19. Bd3 {[%clk 00:06:20]}
{[%emt 00:00:03]} Re8 {[%clk 00:05:06]} {[%emt 00:00:14]} 20. Qxf4 {[%clk
00:06:26]} {[%emt 00:00:03]} Nf6 {[%clk 00:05:07]} {[%emt 00:00:10]} 21. Qg5
{[%clk 00:06:21]} {[%emt 00:00:16]} Qd8 {[%clk 00:05:09]} {[%emt 00:00:08]} 22.
Bxa6 {[%clk 00:06:18]} {[%emt 00:00:13]} Ne4 {[%clk 00:04:36]} {[%emt
00:00:42]} 23. Qxd8 {[%clk 00:06:22]} {[%emt 00:00:06]} Rbxd8 {[%clk 00:04:41]}
{[%emt 00:00:06]} 24. Bb5 {[%clk 00:06:21]} {[%emt 00:00:11]} Re7 {[%clk
00:04:43]} {[%emt 00:00:08]} 25. Bc6 {[%clk 00:06:26]} {[%emt 00:00:05]} Nf6
{[%clk 00:04:36]} {[%emt 00:00:17]} 26. Rbe1 {[%clk 00:06:27]} {[%emt
00:00:08]} Rxe1 {[%clk 00:04:26]} {[%emt 00:00:21]} 27. Rxe1 {[%clk 00:06:35]}
{[%emt 00:00:03]} h5 {[%clk 00:04:17]} {[%emt 00:00:18]} 28. Re7 {[%clk
00:06:31]} {[%emt 00:00:14]} d5 {[%clk 00:03:25]} {[%emt 00:01:03]} 29. Rxc7
{[%clk 00:06:33]} {[%emt 00:00:06]} Ne4 {[%clk 00:03:17]} {[%emt 00:00:19]} 30.
c4 {[%clk 00:06:18]} {[%emt 00:00:24]} Nc3 {[%clk 00:03:13]} {[%emt 00:00:14]}
31. cxd5 {[%clk 00:06:00]} {[%emt 00:00:28]} Nxd5 {[%clk 00:03:13]} {[%emt
00:00:10]} 32. Bxd5 {[%clk 00:06:08]} {[%emt 00:00:02]} Rxd5 {[%clk 00:03:20]}
{[%emt 00:00:03]} 33. Rb7 {[%clk 00:06:14]} {[%emt 00:00:04]} Bxd4 {[%clk
00:03:23]} {[%emt 00:00:08]} 34. Nxd4 {[%clk 00:06:21]} {[%emt 00:00:03]} Rxd4
{[%clk 00:03:29]} {[%emt 00:00:04]} 35. Rxb6 {[%clk 00:06:29]} {[%emt
00:00:02]} Kf8 {[%clk 00:03:34]} {[%emt 00:00:07]} 36. b4 {[%clk 00:06:37]}
{[%emt 00:00:01]} Ke7 {[%clk 00:03:40]} {[%emt 00:00:04]} 37. a5 {[%clk
00:06:46]} {[%emt 00:00:02]} Kd8 {[%clk 00:03:39]} {[%emt 00:00:11]} 38. a6
{[%clk 00:06:49]} {[%emt 00:00:07]} Kc7 {[%clk 00:03:41]} {[%emt 00:00:08]} 39.
Rb7+ {[%clk 00:06:55]} {[%emt 00:00:03]} Kc8 {[%clk 00:03:40]} {[%emt
00:00:12]} 40. b5 {[%clk 00:07:03]} {[%emt 00:00:02]} Ra4 {[%clk 00:03:41]}
{[%emt 00:00:09]} 41. Rxf7 {[%clk 00:07:09]} {[%emt 00:00:04]} Ra5 {[%clk
00:03:48]} {[%emt 00:00:04]} 42. a7 {[%clk 00:07:07]} {[%emt 00:00:12]} Kd8
{[%clk 00:03:39]} {[%emt 00:00:19]} 43. b6 {[%clk 00:07:15]} {[%emt 00:00:02]}
Kc8 {[%clk 00:03:45]} {[%emt 00:00:03]} 44. b7+ {[%clk 00:07:19]} {[%emt
00:00:05]} Kd8 {[%emt 00:00:19]} 1-0

[Event "Couzeix rapide 9 rondes cadences multiples"]
[Site "Couzeix Chess Club, France"]
[Date "2019.03.10"]
[Round "1.3"]
[White "Tireau, Jean-Marie"]
[Black "Girel, Joseph"]
[Result "0-1"]
[TimeControl "5'+10''pm,  7'+10''pm, 10'+10''pm,"]
[WhiteElo "1509"]
[BlackElo "2220"]

1. Nf3 {[%clk 00:05:18]} {[%emt 00:00:02]} d5 {[%clk 00:05:04]} {[%emt
00:00:15]} 2. c4 {[%clk 00:05:25]} {[%emt 00:00:03]} c6 {[%clk 00:05:09]}
{[%emt 00:00:05]} 3. g3 {[%clk 00:05:34]} {[%emt 00:00:01]} Nf6 {[%clk
00:05:18]} {[%emt 00:00:03]} 4. Bg2 {[%clk 00:05:42]} e6 {[%clk 00:05:25]}
{[%emt 00:00:03]} 5. O-O {[%clk 00:05:50]} {[%emt 00:00:03]} Be7 {[%clk
00:05:33]} {[%emt 00:00:01]} 6. d4 {[%clk 00:05:51]} {[%emt 00:00:09]} O-O
{[%clk 00:05:38]} {[%emt 00:00:05]} 7. Nc3 {[%clk 00:05:59]} {[%emt 00:00:02]}
dxc4 {[%clk 00:05:42]} {[%emt 00:00:05]} 8. Ne5 {[%clk 00:05:44]} {[%emt
00:00:25]} Nd5 {[%clk 00:05:34]} {[%emt 00:00:19]} 9. Nxc4 {[%clk 00:05:47]}
{[%emt 00:00:07]} Nd7 {[%clk 00:05:38]} {[%emt 00:00:07]} 10. e4 {[%clk
00:05:44]} {[%emt 00:00:11]} Nxc3 {[%clk 00:05:46]} {[%emt 00:00:03]} 11. bxc3
{[%clk 00:05:53]} {[%emt 00:00:02]} c5 {[%clk 00:05:35]} {[%emt 00:00:20]} 12.
Ba3 {[%clk 00:05:44]} {[%emt 00:00:18]} b5 {[%clk 00:05:30]} {[%emt 00:00:15]}
13. Ne3 {[%clk 00:05:45]} {[%emt 00:00:10]} Bb7 {[%clk 00:05:31]} {[%emt
00:00:08]} 14. Rb1 {[%clk 00:05:36]} {[%emt 00:00:19]} Qa5 {[%clk 00:05:29]}
{[%emt 00:00:11]} 15. Qb3 {[%clk 00:05:00]} {[%emt 00:00:46]} Ba6 {[%clk
00:05:21]} {[%emt 00:00:18]} 16. dxc5 {[%clk 00:04:35]} {[%emt 00:00:35]} Nxc5
{[%clk 00:05:26]} {[%emt 00:00:06]} 17. Bxc5 {[%clk 00:04:42]} {[%emt
00:00:03]} Bxc5 {[%clk 00:05:34]} 18. Nc2 {[%clk 00:04:10]} {[%emt 00:00:42]}
Qb6 {[%clk 00:05:38]} {[%emt 00:00:06]} 19. Rbd1 {[%clk 00:04:04]} {[%emt
00:00:16]} b4 {[%clk 00:05:19]} {[%emt 00:00:30]} 20. cxb4 {[%clk 00:03:36]}
{[%emt 00:00:38]} Bxf1 {[%clk 00:05:26]} {[%emt 00:00:02]} 21. bxc5 {[%clk
00:03:45]} Qxb3 {[%clk 00:05:35]} 22. axb3 {[%clk 00:03:52]} {[%emt 00:00:05]}
Bxg2 {[%clk 00:05:43]} 23. Kxg2 {[%clk 00:03:55]} {[%emt 00:00:08]} Rfc8 {[%clk
00:05:51]} {[%emt 00:00:02]} 24. b4 {[%clk 00:04:02]} {[%emt 00:00:03]} a5
{[%clk 00:06:00]} 25. Ra1 {[%clk 00:03:40]} {[%emt 00:00:33]} axb4 {[%clk
00:05:56]} {[%emt 00:00:13]} 26. Rxa8 {[%emt 00:00:02]} Rxa8 {[%clk 00:06:05]}
27. Nxb4 {[%clk 00:03:58]} {[%emt 00:00:02]} Ra4 {[%clk 00:06:12]} {[%emt
00:00:04]} 28. Nd3 {[%clk 00:03:52]} {[%emt 00:00:15]} Rxe4 {[%clk 00:06:14]}
{[%emt 00:00:09]} 29. Kf3 {[%clk 00:04:01]} Rc4 {[%clk 00:06:22]} {[%emt
00:00:03]} 30. Ke3 {[%clk 00:04:05]} {[%emt 00:00:05]} Kf8 {[%clk 00:06:30]}
{[%emt 00:00:02]} 31. f4 {[%clk 00:04:12]} {[%emt 00:00:04]} Ke7 {[%clk
00:06:39]} 32. h3 {[%clk 00:04:17]} {[%emt 00:00:04]} f6 {[%clk 00:06:46]}
{[%emt 00:00:03]} 33. g4 {[%clk 00:04:25]} {[%emt 00:00:02]} Kd7 {[%clk
00:06:53]} {[%emt 00:00:03]} 34. g5 {[%clk 00:04:34]} {[%emt 00:00:01]} Kc6
{[%clk 00:07:00]} 35. h4 {[%clk 00:04:43]} {[%emt 00:00:03]} Kd5 {[%clk
00:07:03]} {[%emt 00:00:06]} 36. h5 {[%clk 00:04:44]} {[%emt 00:00:10]} fxg5
{[%clk 00:06:57]} {[%emt 00:00:17]} 37. fxg5 {[%clk 00:04:53]} {[%emt
00:00:02]} e5 {[%clk 00:06:59]} {[%emt 00:00:08]} 0-1

[Event "Couzeix rapide 9 rondes cadences multiples"]
[Site "Couzeix Chess Club, France"]
[Date "2019.03.10"]
[Round "1.4"]
[White "Jackson, Edgar"]
[Black "Anne, Jerome"]
[Result "1-0"]
[TimeControl "5'+10''pm,  7'+10''pm, 10'+10''pm,"]
[WhiteElo "1701"]
[BlackElo "1399"]

1. d4 {[%clk 00:05:17]} {[%emt 00:00:02]} d5 {[%clk 00:05:18]} {[%emt
00:00:03]} 2. c4 {[%clk 00:05:26]} e6 {[%clk 00:05:26]} {[%emt 00:00:02]} 3.
Nc3 {[%clk 00:05:34]} {[%emt 00:00:01]} b6 {[%clk 00:05:24]} {[%emt 00:00:12]}
4. Nf3 {[%clk 00:05:20]} {[%emt 00:00:24]} c5 {[%clk 00:05:32]} {[%emt
00:00:02]} 5. cxd5 {[%clk 00:05:15]} {[%emt 00:00:15]} exd5 {[%clk 00:05:38]}
{[%emt 00:00:04]} 6. Bf4 {[%clk 00:04:28]} {[%emt 00:00:57]} Nc6 {[%clk
00:05:29]} {[%emt 00:00:19]} 7. e3 {[%clk 00:04:36]} {[%emt 00:00:03]} Be6
{[%clk 00:05:05]} {[%emt 00:00:34]} 8. Bb5 {[%clk 00:04:04]} {[%emt 00:00:42]}
Bd7 {[%clk 00:04:49]} {[%emt 00:00:27]} 9. Nxd5 {[%clk 00:04:03]} {[%emt
00:00:12]} a6 {[%clk 00:04:47]} {[%emt 00:00:11]} 10. Bxc6 {[%clk 00:00:00]}
{[%emt 00:01:00]} Qc8 {[%clk 00:04:59]} {[%emt 00:00:26]} 11. Bxd7+ {[%clk
00:06:08]} {[%emt 00:00:06]} Qxd7 {[%clk 00:05:05]} {[%emt 00:00:03]} 12. Nc7+
{[%clk 00:06:15]} {[%emt 00:00:03]} Kd8 {[%clk 00:05:07]} {[%emt 00:00:08]} 13.
Nxa8 {[%clk 00:06:22]} {[%emt 00:00:05]} Qa7 {[%clk 00:05:05]} {[%emt
00:00:14]} 14. dxc5+ {[%clk 00:06:03]} {[%emt 00:00:27]} Qd7 {[%clk 00:04:58]}
{[%emt 00:00:17]} 15. Qxd7+ {[%clk 00:06:09]} {[%emt 00:00:04]} Kxd7 {[%clk
00:05:03]} {[%emt 00:00:05]} 16. Nxb6+ {[%clk 00:06:16]} {[%emt 00:00:03]} Kd8
{[%clk 00:05:02]} {[%emt 00:00:11]} 17. O-O-O+ {[%clk 00:06:21]} {[%emt
00:00:04]} Kc8 {[%clk 00:05:03]} {[%emt 00:00:09]} 18. Bd6+ {[%clk 00:06:07]}
{[%emt 00:00:24]} Kb7 {[%clk 00:04:39]} {[%emt 00:00:31]} 19. Bxf8 {[%clk
00:06:13]} {[%emt 00:00:07]} Nf6 {[%clk 00:04:27]} {[%emt 00:00:21]} 20. Bxg7
{[%clk 00:06:14]} {[%emt 00:00:11]} Ne4 {[%clk 00:04:13]} {[%emt 00:00:23]} 21.
Rd7+ {[%clk 00:06:08]} {[%emt 00:00:16]} Kc6 {[%clk 00:03:59]} {[%emt
00:00:21]} 22. Nd4+ {[%clk 00:06:05]} {[%emt 00:00:15]} Kxc5 {[%clk 00:04:04]}
{[%emt 00:00:06]} 23. Bxh8 {[%clk 00:05:20]} {[%emt 00:00:55]} Kxb6 {[%clk
00:04:06]} {[%emt 00:00:06]} 24. Rxf7 {[%clk 00:05:16]} {[%emt 00:00:15]} h5
{[%clk 00:04:03]} {[%emt 00:00:13]} 25. Nb3 {[%clk 00:04:34]} {[%emt 00:00:52]}
Nxf2 {[%clk 00:03:58]} {[%emt 00:00:13]} 26. Rxf2 {[%clk 00:04:42]} {[%emt
00:00:04]} h4 {[%clk 00:03:56]} {[%emt 00:00:12]} 27. Rf5 {[%clk 00:04:49]}
{[%emt 00:00:03]} Kc6 {[%clk 00:03:55]} {[%emt 00:00:11]} 28. Nd4+ {[%clk
00:04:40]} {[%emt 00:00:20]} Kb6 {[%emt 00:00:05]} 29. Rd1 {[%clk 00:04:48]} a5
{[%clk 00:03:56]} {[%emt 00:00:15]} 30. Nf3 {[%clk 00:04:52]} {[%emt 00:00:05]}
Kc6 {[%clk 00:03:37]} {[%emt 00:00:30]} 31. Rdd5 {[%clk 00:04:39]} {[%emt
00:00:23]} Kb6 {[%clk 00:03:41]} {[%emt 00:00:05]} 32. Rd6+ {[%clk 00:04:47]}
{[%emt 00:00:03]} Kc7 {[%clk 00:03:41]} {[%emt 00:00:08]} 33. Be5 {[%clk
00:04:54]} {[%emt 00:00:05]} Kc8 {[%clk 00:03:48]} {[%emt 00:00:03]} 34. Rf7
{[%clk 00:05:00]} {[%emt 00:00:04]} Kb8 {[%clk 00:03:54]} {[%emt 00:00:04]} 35.
Rh6+ {[%clk 00:05:08]} {[%emt 00:00:02]} Ka8 {[%clk 00:03:59]} {[%emt
00:00:04]} 36. Rh8# {[%clk 00:05:16]} {[%emt 00:00:02]} 1-0

[Event "Couzeix rapide 9 rondes cadences multiples"]
[Site "Couzeix Chess Club, France"]
[Date "2019.03.10"]
[Round "2.1"]
[White "Jackson, Thomas"]
[Black "Charles, Simon"]
[Result "1/2-1/2"]
[TimeControl "5'+10''pm,  7'+10''pm, 10'+10''pm,"]
[WhiteElo "2106"]
[BlackElo "1754"]

1. d4 {[%clk 00:05:18]} {[%emt 00:00:02]} Nf6 {[%clk 00:05:07]} {[%emt
00:00:13]} 2. c4 {[%clk 00:05:20]} {[%emt 00:00:07]} c5 {[%clk 00:05:15]}
{[%emt 00:00:04]} 3. d5 {[%clk 00:05:27]} {[%emt 00:00:02]} b5 {[%clk
00:05:24]} {[%emt 00:00:01]} 4. cxb5 {[%clk 00:05:36]} a6 {[%clk 00:05:33]}
{[%emt 00:00:02]} 5. bxa6 {[%clk 00:05:45]} Bxa6 {[%clk 00:05:41]} 6. Nc3
{[%clk 00:05:52]} {[%emt 00:00:03]} d6 {[%clk 00:05:38]} {[%emt 00:00:13]} 7.
Nf3 {[%clk 00:05:59]} {[%emt 00:00:03]} g6 {[%clk 00:05:47]} {[%emt 00:00:01]}
8. g3 {[%clk 00:06:08]} {[%emt 00:00:01]} Bg7 {[%clk 00:05:56]} 9. Bg2 {[%clk
00:06:16]} {[%emt 00:00:01]} O-O {[%clk 00:06:01]} {[%emt 00:00:06]} 10. O-O
{[%clk 00:06:24]} {[%emt 00:00:02]} Nbd7 {[%clk 00:05:52]} {[%emt 00:00:19]} 11.
Rb1 {[%clk 00:06:33]} {[%emt 00:00:01]} Qb6 {[%clk 00:05:36]} {[%emt 00:00:26]}
12. b3 {[%clk 00:05:14]} {[%emt 00:01:29]} Rfb8 {[%clk 00:05:00]} {[%emt
00:00:46]} 13. Bb2 {[%clk 00:04:21]} {[%emt 00:01:03]} Ng4 {[%clk 00:03:18]}
{[%emt 00:01:52]} 14. h3 {[%clk 00:03:34]} {[%emt 00:00:57]} Nge5 {[%clk
00:03:17]} {[%emt 00:00:11]} 15. Nxe5 {[%clk 00:03:30]} {[%emt 00:00:14]} Nxe5
{[%clk 00:02:58]} {[%emt 00:00:28]} 16. Ba1 {[%clk 00:03:25]} {[%emt 00:00:15]}
Qb4 {[%clk 00:01:55]} {[%emt 00:01:13]} 17. Qc1 {[%clk 00:02:16]} {[%emt
00:01:19]} Nd7 {[%clk 00:01:31]} {[%emt 00:00:34]} 18. Rd1 {[%clk 00:01:59]}
{[%emt 00:00:26]} Bb7 {[%clk 00:00:52]} {[%emt 00:00:50]} 19. a4 {[%clk
00:02:08]} {[%emt 00:00:01]} Nf6 {[%clk 00:00:56]} {[%emt 00:00:06]} 20. Nb5
{[%clk 00:01:23]} {[%emt 00:00:55]} Qa5 {[%clk 00:00:47]} {[%emt 00:00:19]} 21.
Bc3 {[%clk 00:01:31]} {[%emt 00:00:01]} Qd8 {[%clk 00:00:56]} {[%emt 00:00:01]}
22. e4 {[%clk 00:01:20]} {[%emt 00:00:22]} Ba6 {[%clk 00:01:02]} {[%emt
00:00:05]} 23. Na3 {[%clk 00:01:28]} {[%emt 00:00:01]} Be2 {[%clk 00:00:40]}
{[%emt 00:00:31]} 24. Re1 {[%clk 00:01:24]} {[%emt 00:00:14]} Bd3 {[%clk
00:00:47]} {[%emt 00:00:03]} 25. Rb2 {[%clk 00:01:34]} {[%emt 00:00:01]} Rb7
{[%clk 00:00:48]} {[%emt 00:00:09]} 26. Qe3 {[%clk 00:01:31]} {[%emt 00:00:13]}
Ba6 {[%clk 00:00:55]} {[%emt 00:00:03]} 27. Reb1 {[%clk 00:01:31]} {[%emt
00:00:11]} Qc7 {[%clk 00:00:36]} {[%emt 00:00:28]} 28. Kh2 {[%clk 00:01:33]}
{[%emt 00:00:07]} Nd7 {[%clk 00:00:45]} {[%emt 00:00:01]} 29. Bxg7 {[%clk
00:01:36]} {[%emt 00:00:07]} Kxg7 {[%clk 00:00:54]} 30. f4 {[%clk 00:01:45]}
{[%emt 00:00:01]} Rab8 {[%clk 00:00:57]} {[%emt 00:00:08]} 31. Bf1 {[%clk
00:01:25]} {[%emt 00:00:30]} Bxf1 {[%clk 00:01:03]} {[%emt 00:00:04]} 32. Rxf1
{[%clk 00:01:33]} Nb6 {[%clk 00:01:11]} {[%emt 00:00:02]} 33. Nb5 {[%clk
00:01:35]} {[%emt 00:00:08]} Qd7 {[%clk 00:01:16]} {[%emt 00:00:05]} 34. e5
{[%clk 00:01:12]} {[%emt 00:00:33]} Nxd5 {[%clk 00:01:16]} {[%emt 00:00:10]} 35.
Qe4 {[%clk 00:01:06]} {[%emt 00:00:17]} dxe5 {[%clk 00:01:17]} {[%emt
00:00:08]} 36. Rd1 {[%clk 00:01:06]} {[%emt 00:00:10]} e6 {[%clk 00:01:24]}
{[%emt 00:00:03]} 37. Qxe5+ {[%clk 00:01:13]} {[%emt 00:00:03]} Kg8 {[%clk
00:01:33]} 38. Rc2 {[%clk 00:01:07]} {[%emt 00:00:15]} Rc8 {[%clk 00:01:24]}
{[%emt 00:00:20]} 39. Nd6 {[%clk 00:00:55]} {[%emt 00:00:22]} f6 {[%clk
00:01:33]} 40. Qe4 {[%clk 00:00:23]} {[%emt 00:00:43]} Qxd6 {[%clk 00:01:40]}
{[%emt 00:00:02]} 41. Rd3 {[%clk 00:00:31]} {[%emt 00:00:03]} Rcb8 {[%clk
00:01:47]} {[%emt 00:00:03]} 42. Qc4 {[%clk 00:00:35]} {[%emt 00:00:05]} Qc6
{[%clk 00:01:56]} {[%emt 00:00:02]} 43. Re2 {[%clk 00:00:39]} {[%emt 00:00:06]}
Rb4 {[%clk 00:02:02]} {[%emt 00:00:03]} 44. Qc2 {[%clk 00:00:46]} {[%emt
00:00:03]} Kf7 {[%clk 00:02:05]} {[%emt 00:00:07]} 45. Qd1 {[%clk 00:00:44]}
{[%emt 00:00:12]} c4 {[%clk 00:02:09]} {[%emt 00:00:06]} 46. bxc4 {[%clk
00:00:51]} {[%emt 00:00:02]} Qxc4 {[%clk 00:02:14]} {[%emt 00:00:05]} 47. Rc2
{[%clk 00:00:54]} {[%emt 00:00:07]} Rb2 {[%clk 00:02:21]} {[%emt 00:00:02]} 48.
Rdd2 {[%clk 00:00:55]} {[%emt 00:00:09]} Ne3 {[%clk 00:02:04]} {[%emt
00:00:27]} 49. Rxc4 {[%clk 00:00:44]} {[%emt 00:00:22]} Nxd1 {[%clk 00:02:12]}
{[%emt 00:00:01]} 50. Rxb2 {[%clk 00:00:51]} {[%emt 00:00:03]} Rxb2+ {[%clk
00:02:21]} {[%emt 00:00:01]} 51. Kg1 {[%clk 00:01:00]} Ne3 {[%clk 00:02:26]}
{[%emt 00:00:05]} 52. Rc7+ {[%clk 00:00:56]} {[%emt 00:00:14]} Ke8 {[%clk
00:02:29]} {[%emt 00:00:08]} 53. g4 {[%clk 00:01:01]} {[%emt 00:00:05]} Ra2
{[%clk 00:02:17]} {[%emt 00:00:20]} 54. Ra7 {[%clk 00:01:10]} {[%emt 00:00:03]}
Nd5 {[%clk 00:02:19]} {[%emt 00:00:07]} 55. a5 {[%clk 00:01:15]} {[%emt
00:00:05]} Nxf4 {[%clk 00:02:26]} {[%emt 00:00:02]} 56. a6 {[%clk 00:01:14]}
{[%emt 00:00:11]} Nd5 {[%clk 00:02:33]} {[%emt 00:00:03]} 57. Ra8+ {[%clk
00:01:19]} {[%emt 00:00:06]} Kd7 {[%clk 00:02:41]} {[%emt 00:00:02]} 58. h4
{[%clk 00:01:09]} {[%emt 00:00:20]} Nc7 {[%clk 00:02:50]} 59. Rh8 {[%clk
00:01:15]} {[%emt 00:00:04]} Nxa6 {[%clk 00:02:55]} {[%emt 00:00:05]} 60. Rxh7+
{[%clk 00:01:23]} {[%emt 00:00:01]} Ke8 {[%clk 00:02:57]} {[%emt 00:00:07]} 61.
Rg7 {[%clk 00:01:27]} {[%emt 00:00:07]} Kf8 {[%clk 00:03:04]} {[%emt 00:00:04]}
62. Rxg6 {[%clk 00:01:33]} {[%emt 00:00:03]} Kf7 {[%clk 00:03:13]} 63. Rh6
{[%clk 00:01:41]} {[%emt 00:00:02]} Kg7 {[%clk 00:03:17]} {[%emt 00:00:05]} 64.
g5 {[%clk 00:01:51]} fxg5 {[%clk 00:03:19]} {[%emt 00:00:09]} 65. hxg5 {[%clk
00:02:00]} e5 {[%clk 00:03:27]} {[%emt 00:00:02]} 66. Re6 {[%clk 00:02:09]} Ra5
{[%clk 00:03:29]} {[%emt 00:00:09]} 67. Kf2 {[%clk 00:02:16]} {[%emt 00:00:03]}
Nc5 {[%clk 00:03:35]} {[%emt 00:00:05]} 68. Re7+ {[%clk 00:02:11]} {[%emt
00:00:15]} Kg6 {[%clk 00:03:43]} {[%emt 00:00:02]} 69. Ke3 {[%clk 00:02:20]}
Kxg5 {[%clk 00:03:51]} {[%emt 00:00:02]} 70. Rxe5+ {[%clk 00:02:29]} {[%emt
00:00:01]} Kf6 {[%clk 00:03:57]} {[%emt 00:00:04]} 71. Rh5 {[%clk 00:02:33]}
{[%emt 00:00:05]} 1/2-1/2